bitfinex/quotes_SOLUSD_20240624
["timestamp","ask_amount","ask_price","bid_price","bid_amount"]
[1719223385589,34.11278183,126.56,126.48,100.0]
[1719223385889,0.17,126.55,126.48,100.0]
[1719223386102,0.17,126.55,126.46,100.0]
[1719223386103,0.79118183,126.54,126.46,100.0]
[1719223386315,0.17,126.53,126.46,100.0]
[1719223386605,0.34,126.53,126.46,100.0]
[1719223387619,13.0121,126.52,126.46,100.0]
[1719223387975,13.0121,126.52,126.48,100.0]
[1719223388176,13.0121,126.52,126.5,100.0]
[1719223388592,12.9494,126.55,126.5,100.0]
[1719223388792,12.9494,126.55,126.52,100.0]
[1719223389185,13.1165,126.58,126.54,100.0]
[1719223389500,13.1165,126.58,126.56,100.0]
[1719223389701,38.30581168,126.61,126.56,100.0]
[1719223389702,37.51462985,126.61,126.56,100.0]
[1719223390302,37.51462985,126.61,126.58,100.0]
[1719223390486,4.73392985,126.61,126.58,100.0]
[1719223390691,4.73392985,126.61,126.6,100.0]
[1719223391795,4.73392985,126.61,126.58,100.0]
[1719223392392,4.73392985,126.61,126.56,100.0]
[1719223392591,4.73392985,126.61,126.58,100.0]
[1719223393093,4.73392985,126.61,126.56,100.0]
[1719223393795,4.73392985,126.61,126.54,100.0]
[1719223393999,12.9316,126.59,126.54,100.0]
[1719223394184,12.9316,126.59,126.52,100.0]
[1719223394386,12.9316,126.59,126.5,100.0]
[1719223394387,12.9316,126.59,126.54,100.0]
[1719223394593,4.73392985,126.61,126.56,100.0]
[1719223394790,4.73392985,126.61,126.58,100.0]
[1719223395297,4.73392985,126.61,126.6,100.0]
[1719223395598,4.73392985,126.61,126.58,100.0]
[1719223395798,4.73392985,126.61,126.6,100.0]
[1719223395980,4.73392985,126.61,126.6,107.8988]
[1719223396300,4.73392985,126.61,126.6,200.17]
[1719223396501,4.73392985,126.61,126.6,200.34]
[1719223397080,10.79979334,126.64,126.6,200.34]
[1719223397081,10.79979334,126.64,126.63,7.897]
[1719223397293,10.79979334,126.64,126.63,8.237]
[1719223397499,10.79979334,126.64,126.63,0.34]
[1719223398000,10.79979334,126.64,126.62,200.0]
[1719223399083,11.589558,126.64,126.62,200.0]
[1719223399487,11.589558,126.64,126.63,8.237]
[1719223399896,9.41487122,126.68,126.64,200.0]
[1719223400224,4.29681805,126.7,126.69,227.6264]
[1719223400408,4.75552879,126.76,126.69,227.6264]
[1719223400409,4.75552879,126.76,126.71,227.622]
[1719223400584,4.75552879,126.76,126.71,208.232]
[1719223401438,4.75552879,126.76,126.73,227.6176]
[1719223401588,4.75552879,126.76,126.73,227.9576]
[1719223402317,4.75552879,126.76,126.73,208.0607]
[1719223402698,4.75552879,126.76,126.73,200.0]
[1719223403215,4.75552879,126.76,126.73,207.8907]
[1719223403805,4.75552879,126.76,126.74,75.2055]
[1719223404005,9.22e-06,126.75,126.74,75.2055]
[1719223404192,9.22e-06,126.75,126.74,105.2055]
[1719223404393,5.38745018,126.78,126.77,275.199]
[1719223404587,5.38745018,126.78,126.77,275.539]
[1719223405004,0.84665018,126.78,126.77,275.539]
[1719223405311,1.80828757,126.81,126.8,7.8864]
[1719223405615,0.80573852,126.82,126.81,207.8858]
[1719223405792,0.80573852,126.82,126.81,208.2258]
[1719223405996,0.80573852,126.82,126.81,227.9403]
[1719223406209,3.852e-05,126.82,126.81,275.5303]
[1719223406394,6.749e-05,126.84,126.83,275.1859]
[1719223406600,6.749e-05,126.84,126.83,659.0859]
[1719223406994,6.749e-05,126.84,126.83,227.5959]
[1719223407398,6.749e-05,126.84,126.83,611.4959]
[1719223407604,6.749e-05,126.84,126.83,100.0]
[1719223408213,6.749e-05,126.84,126.77,100.0]
[1719223408603,6.749e-05,126.84,126.66,395.489558]
[1719223408604,6.749e-05,126.84,126.8,100.0]
[1719223408806,35.25199683,126.85,126.77,100.0]
[1719223409017,27.36859683,126.85,126.77,100.0]
[1719223409719,0.17,126.84,126.77,100.0]
[1719223409895,0.17,126.84,126.72,100.0]
[1719223409896,7.8853,126.82,126.73,100.0]
[1719223410095,0.34,126.84,126.77,100.0]
[1719223410291,7.8866,126.8,126.73,100.0]
[1719223410501,8.0574,126.79,126.7,200.0]
[1719223411124,12.9116,126.77,126.7,200.0]
[1719223412202,0.17,126.76,126.69,100.0]
[1719223412516,12.9116,126.77,126.71,100.0]
[1719223412695,12.9116,126.77,126.73,100.0]
[1719223413191,27.36859683,126.85,126.77,100.0]
[1719223413192,13.0652,126.84,126.77,100.0]
[1719223413390,13.0652,126.84,126.75,100.0]
[1719223413614,13.0652,126.84,126.77,100.0]
[1719223414504,13.0652,126.84,126.79,100.0]
[1719223415324,13.0652,126.84,126.76,100.0]
[1719223415709,20.9492,126.84,126.76,100.0]
[1719223416023,13.0652,126.84,126.76,100.0]
[1719223416223,7.8856,126.82,126.76,100.0]
[1719223416617,0.17,126.83,126.76,100.0]
[1719223416826,13.0652,126.84,126.76,100.0]
[1719223417010,13.0652,126.84,126.78,100.0]
[1719223417532,13.0652,126.84,126.8,100.0]
[1719223417724,13.0652,126.84,126.78,100.0]
[1719223418027,7.8852,126.82,126.75,100.0]
[1719223418327,7.886,126.81,126.72,100.0]
[1719223418509,13.0652,126.84,126.72,100.0]
[1719223418705,7.8875,126.79,126.72,100.0]
[1719223418918,13.0652,126.84,126.72,100.0]
[1719223418919,0.17,126.8,126.72,100.0]
[1719223419121,0.78914142,126.73,126.72,100.0]
[1719223419412,0.78914142,126.73,126.71,100.0]
[1719223419413,0.78914142,126.73,126.7,100.0]
[1719223420053,0.78914142,126.73,126.69,100.0]
[1719223420054,0.78914142,126.73,126.72,100.0]
[1719223420532,0.78914142,126.73,126.7,100.0]
[1719223421860,0.78914142,126.73,126.68,100.0]
[1719223422318,0.78914142,126.73,126.69,100.0]
[1719223422523,0.78914142,126.73,126.7,100.0]
[1719223423112,0.78914142,126.73,126.68,100.0]
[1719223424532,0.78914142,126.73,126.66,11.589558]
[1719223424833,0.78914142,126.73,126.66,19.484358]
[1719223425035,0.78914142,126.73,126.66,11.589558]
[1719223425926,0.78914142,126.73,126.66,19.484258]
[1719223427519,0.78914142,126.73,126.66,11.589558]
[1719223430152,0.78914142,126.73,126.68,100.0]
[1719223430443,0.78914142,126.73,126.7,100.0]
[1719223431531,0.78914142,126.73,126.72,100.0]
[1719223432615,0.78914142,126.73,126.72,107.8914]
[1719223432814,0.78914142,126.73,126.72,108.0614]
[1719223433450,0.78914142,126.73,126.72,127.7899]
[1719223433617,0.78914142,126.73,126.72,108.2314]
[1719223434723,0.78914142,126.73,126.72,100.17]
[1719223434926,0.78914142,126.73,126.72,108.2314]
[1719223436118,0.78914142,126.73,126.72,108.0614]
[1719223436622,0.78914142,126.73,126.72,100.0]
[1719223442930,0.78914142,126.73,126.72,200.0]
[1719223443919,0.78914142,126.73,126.72,100.0]
[1719223444345,0.78914142,126.73,126.7,100.0]
[1719223444929,0.78914142,126.73,126.7,200.0]
[1719223445429,0.78914142,126.73,126.7,100.0]
[1719223445730,0.78914142,126.73,126.72,100.0]
[1719223446659,0.78914142,126.73,126.72,207.8914]
[1719223446840,0.78914142,126.73,126.72,200.17]
[1719223447041,0.78914142,126.73,126.72,200.0]
[1719223447442,0.78914142,126.73,126.72,208.2314]
[1719223447946,0.78914142,126.73,126.72,200.0]
[1719223449251,0.78914142,126.73,126.72,100.0]
[1719223450150,0.78914142,126.73,126.72,200.0]
[1719223450848,0.78914142,126.73,126.72,208.0614]
[1719223451249,4.142e-05,126.73,126.72,208.0614]
[1719223451453,4.142e-05,126.73,126.72,227.9599]
[1719223451957,4.142e-05,126.73,126.72,275.3999]
[1719223452156,18.74533087,126.86,126.84,100.0]
[1719223452530,18.74533087,126.86,126.82,200.0]
[1719223452733,18.74533087,126.86,126.82,100.0]
[1719223452933,1.16703087,126.86,126.85,100.0]
[1719223453145,1.16703087,126.86,126.82,100.0]
[1719223453146,1.16703087,126.86,126.83,100.0]
[1719223453934,1.16703087,126.86,126.85,107.8833]
[1719223454149,1.16703087,126.86,126.85,100.0]
[1719223454654,1.16703087,126.86,126.85,107.8833]
[1719223455048,1.16703087,126.86,126.85,108.2233]
[1719223455252,1.16703087,126.86,126.85,108.0533]
[1719223456442,1.16703087,126.86,126.85,108.2233]
[1719223457059,1.16703087,126.86,126.85,108.0533]
[1719223457783,1.16703087,126.86,126.85,100.17]
[1719223457945,1.16703087,126.86,126.85,100.0]
[1719223459075,1.95536355,126.86,126.85,100.0]
[1719223459656,1.95536355,126.86,126.83,100.0]
[1719223460763,1.95536355,126.86,126.79,100.0]
[1719223461141,0.17,126.85,126.78,100.0]
[1719223461339,0.34,126.85,126.77,100.0]
[1719223461664,33.1225,126.84,126.75,100.0]
[1719223461843,0.17,126.83,126.75,200.0]
[1719223462045,25.2385,126.84,126.78,100.0]
[1719223462959,25.2385,126.84,126.8,100.0]
[1719223463344,25.2385,126.84,126.83,100.0]
[1719223463568,6.355e-05,126.86,126.85,107.8833]
[1719223463746,5.33369308,126.92,126.9,200.0]
[1719223463951,5.33369308,126.92,126.9,207.8802]
[1719223464147,5.33369308,126.92,126.9,208.2202]
[1719223464378,5.33369308,126.92,126.9,210.04309441]
[1719223464843,2.0430811,126.91,126.9,210.04309441]
[1719223465041,8.11e-05,126.91,126.9,210.04309441]
[1719223465273,5.33369308,126.92,126.91,27.5784]
[1719223465556,5.33369308,126.92,126.91,27.7484]
[1719223465762,3.96233545,126.92,126.91,34.114303]
[1719223466764,3.96233545,126.92,126.91,206.365903]
[1719223466951,3.96233545,126.92,126.91,100.0]
[1719223467471,3.96233545,126.92,126.91,106.365902]
[1719223467774,3.96233545,126.92,126.91,100.0]
[1719223468963,3.46233545,126.92,126.89,100.0]
[1719223469661,3.46233545,126.92,126.87,200.0]
[1719223469869,3.46233545,126.92,126.89,100.0]
[1719223470046,3.46233545,126.92,126.91,100.0]
[1719223470466,3.46233545,126.92,126.88,100.0]
[1719223470843,3.46233545,126.92,126.9,100.0]
[1719223471356,3.46233545,126.92,126.89,100.0]
[1719223471566,3.46233545,126.92,126.91,100.0]
[1719223472457,3.46233545,126.92,126.89,200.0]
[1719223472867,3.46233545,126.92,126.89,100.0]
[1719223473450,3.46233545,126.92,126.89,200.0]
[1719223474171,3.46233545,126.92,126.89,100.0]
[1719223474363,3.46233545,126.92,126.88,7.8813]
[1719223474558,3.46233545,126.92,126.89,100.0]
[1719223474756,3.46233545,126.92,126.88,200.0]
[1719223475967,3.46233545,126.92,126.86,100.0]
[1719223476270,3.46233545,126.92,126.88,100.0]
[1719223477066,3.46233545,126.92,126.91,7.8795]
[1719223477571,3.46233545,126.92,126.9,100.0]
[1719223479073,4.25035752,126.92,126.9,100.0]
[1719223479249,4.25035752,126.92,126.9,207.8799]
[1719223479450,4.25035752,126.92,126.9,107.8802]
[1719223479671,4.25035752,126.92,126.9,100.0]
[1719223479867,4.25035752,126.92,126.9,207.8801]
[1719223480260,4.25035752,126.92,126.9,100.0]
[1719223480773,4.25035752,126.92,126.91,100.0]
[1719223480973,4.25035752,126.92,126.9,100.0]
[1719223481780,4.25035752,126.92,126.9,107.8799]
[1719223481957,4.25035752,126.92,126.9,100.0]
[1719223482154,4.25035752,126.92,126.91,7.8795]
[1719223482573,4.25035752,126.92,126.9,107.8799]
[1719223482881,4.25035752,126.92,126.91,109.87225077]
[1719223483064,0.97548958,126.92,126.91,129.57115077]
[1719223483471,0.97548958,126.92,126.91,109.87225077]
[1719223483658,0.97548958,126.92,126.91,101.82275077]
[1719223483981,0.97548958,126.92,126.91,100.0]
[1719223484357,0.97548958,126.92,126.91,107.8795]
[1719223485656,0.97548958,126.92,126.9,100.0]
[1719223486490,0.97548958,126.92,126.91,7.8795]
[1719223486661,0.97548958,126.92,126.91,107.8795]
[1719223487674,0.97548958,126.92,126.91,100.0]
[1719223487863,0.97548958,126.92,126.91,107.8795]
[1719223488589,0.97548958,126.92,126.91,100.0]
[1719223489378,0.97548958,126.92,126.9,100.0]
[1719223489562,0.97548958,126.92,126.9,200.0]
[1719223489761,0.97548958,126.92,126.9,100.0]
[1719223490182,0.97548958,126.92,126.9,107.8801]
[1719223490568,0.97548958,126.92,126.9,100.0]
[1719223491685,0.97548958,126.92,126.91,100.0]
[1719223492070,0.97548958,126.92,126.9,100.0]
[1719223492482,0.97548958,126.92,126.87,100.0]
[1719223493073,0.97548958,126.92,126.89,100.0]
[1719223495185,0.97548958,126.92,126.87,100.0]
[1719223496470,0.97548958,126.92,126.85,100.0]
[1719223496668,0.97548958,126.92,126.85,200.0]
[1719223496889,0.97548958,126.92,126.87,100.0]
[1719223497268,0.97548958,126.92,126.89,200.0]
[1719223497473,0.97548958,126.92,126.89,100.0]
[1719223498477,0.97548958,126.92,126.87,107.8818]
[1719223498666,0.97548958,126.92,126.87,100.0]
[1719223498871,0.97548958,126.92,126.87,200.0]
[1719223499080,0.78802207,126.89,126.87,200.0]
[1719223499392,0.78802207,126.89,126.87,207.882]
[1719223499581,0.78802207,126.89,126.87,200.0]
[1719223501191,0.78802207,126.89,126.87,207.8816]
[1719223501773,0.78802207,126.89,126.88,7.8814]
[1719223503287,0.78802207,126.89,126.87,200.0]
[1719223503513,0.78802207,126.89,126.88,7.8814]
[1719223503794,0.78802207,126.89,126.87,200.0]
[1719223503993,0.78802207,126.89,126.88,7.8814]
[1719223505492,0.78802207,126.89,126.87,100.0]
[1719223505686,0.78802207,126.89,126.88,7.8814]
[1719223507211,2.207e-05,126.89,126.88,10.04458175]
[1719223507413,2.207e-05,126.89,126.88,9.87458175]
[1719223507701,2.207e-05,126.89,126.88,10.04458175]
[1719223507901,2.207e-05,126.89,126.88,109.70458175]
[1719223508201,2.207e-05,126.89,126.88,109.87458175]
[1719223508408,2.207e-05,126.89,126.88,109.70458175]
[1719223509190,2.207e-05,126.89,126.88,107.8814]
[1719223509384,2.207e-05,126.89,126.87,100.0]
[1719223510797,6.48612207,126.89,126.87,100.0]
[1719223511100,6.48612207,126.89,126.84,100.0]
[1719223511505,6.48612207,126.89,126.8,1.37192779]
[1719223511506,0.17,126.88,126.8,1.37192779]
[1719223511715,0.34,126.88,126.83,100.0]
[1719223512713,6.48612207,126.89,126.83,100.0]
[1719223513007,0.17,126.88,126.79,100.0]
[1719223513212,0.34,126.88,126.79,100.0]
[1719223513507,7.0358,126.85,126.77,100.0]
[1719223513709,7.0358,126.85,126.74,107.8896]
[1719223513710,0.34,126.84,126.75,100.0]
[1719223514313,7.0358,126.83,126.75,100.0]
[1719223514497,0.17,126.82,126.75,100.0]
[1719223514697,0.17,126.82,126.76,100.0]
[1719223514903,7.0358,126.83,126.76,100.0]
[1719223515509,7.0358,126.83,126.75,100.0]
[1719223515711,0.17,126.82,126.76,100.0]
[1719223516292,16.4279,126.81,126.73,100.0]
[1719223516498,0.17,126.8,126.73,100.0]
[1719223516824,16.4279,126.81,126.73,100.0]
[1719223517003,16.4279,126.81,126.73,107.8903]
[1719223517200,16.4279,126.81,126.75,200.0]
[1719223517399,16.4279,126.81,126.73,200.0]
[1719223517900,6.7614,126.79,126.71,200.0]
[1719223518211,0.17,126.78,126.71,200.0]
[1719223518397,6.7614,126.79,126.73,100.0]
[1719223518593,6.7614,126.79,126.71,207.892]
[1719223518793,6.7614,126.79,126.71,200.0]
[1719223519200,6.7614,126.79,126.73,200.0]
[1719223519492,6.7614,126.79,126.71,200.0]
[1719223519695,6.7614,126.79,126.76,207.8886]
[1719223519914,6.7614,126.79,126.76,100.0]
[1719223520111,6.7614,126.79,126.74,100.0]
[1719223520317,6.7614,126.79,126.72,100.0]
[1719223520710,6.7614,126.79,126.74,100.0]
[1719223521106,6.7614,126.79,126.75,100.0]
[1719223521300,6.7614,126.79,126.73,200.0]
[1719223521514,6.7614,126.79,126.73,100.0]
[1719223521714,6.7614,126.79,126.71,200.0]
[1719223522101,0.17,126.8,126.66,100.0]
[1719223522102,6.5729,126.77,126.66,100.0]
[1719223522291,0.17,126.76,126.66,100.0]
[1719223522500,0.34,126.76,126.66,100.0]
[1719223522898,0.17,126.76,126.68,100.0]
[1719223523109,6.5729,126.77,126.7,100.0]
[1719223523393,0.17,126.76,126.68,200.0]
[1719223523602,0.17,126.76,126.68,100.0]
[1719223523805,6.5729,126.77,126.71,100.0]
[1719223524230,6.5729,126.77,126.69,100.0]
[1719223525235,0.17,126.76,126.66,100.0]
[1719223525408,0.17,126.76,126.7,100.0]
[1719223525723,6.5729,126.77,126.72,100.0]
[1719223526220,6.5729,126.77,126.73,107.8901]
[1719223526426,6.5729,126.77,126.73,100.0]
[1719223526806,6.5729,126.77,126.73,200.0]
[1719223527210,6.5729,126.77,126.75,100.0]
[1719223527610,7.1302,126.81,126.79,100.0]
[1719223527922,24.5544,126.88,126.82,100.0]
[1719223528221,24.5544,126.88,126.81,100.0]
[1719223528222,24.5544,126.88,126.84,100.0]
[1719223528427,24.5544,126.88,126.86,100.0]
[1719223528428,7.1302,126.88,126.86,100.0]
[1719223529110,2.207e-05,126.89,126.88,100.0]
[1719223529301,2.207e-05,126.89,126.88,200.0]
[1719223529501,2.207e-05,126.89,126.88,100.0]
[1719223529908,2.207e-05,126.89,126.88,200.0]
[1719223530123,2.207e-05,126.89,126.88,100.0]
[1719223530425,2.207e-05,126.89,126.88,200.0]
[1719223530798,2.207e-05,126.89,126.88,100.0]
[1719223530999,2.207e-05,126.89,126.86,100.0]
[1719223531424,2.207e-05,126.89,126.84,100.0]
[1719223531923,2.207e-05,126.89,126.83,100.0]
[1719223532121,2.207e-05,126.89,126.82,100.0]
[1719223533522,2.207e-05,126.89,126.84,100.0]
[1719223533724,2.207e-05,126.89,126.82,100.0]
[1719223533923,2.207e-05,126.89,126.8,100.0]
[1719223534110,2.207e-05,126.89,126.82,100.0]
[1719223534309,2.207e-05,126.89,126.84,100.0]
[1719223534714,2.207e-05,126.89,126.81,100.0]
[1719223534935,6.8093,126.88,126.79,100.0]
[1719223535109,16.1605,126.87,126.77,100.0]
[1719223535310,16.1605,126.87,126.79,100.0]
[1719223535613,16.1605,126.87,126.76,100.0]
[1719223535942,14.4525,126.85,126.76,100.0]
[1719223536110,7.8845,126.83,126.74,100.0]
[1719223536311,0.17,126.82,126.74,100.0]
[1719223536517,8.2241,126.84,126.74,100.0]
[1719223536842,7.8847,126.83,126.74,100.0]
[1719223537019,0.34,126.82,126.74,100.0]
[1719223537347,24.3267,126.81,126.69,100.0]
[1719223537636,7.8874,126.79,126.69,100.0]
[1719223537844,8.0577,126.78,126.69,100.0]
[1719223538012,6.9668,126.77,126.69,100.0]
[1719223538341,0.17,126.76,126.69,100.0]
[1719223538550,0.34,126.76,126.69,100.0]
[1719223539111,2.207e-05,126.7,126.67,100.0]
[1719223539719,2.207e-05,126.7,126.69,100.0]
[1719223539919,2.207e-05,126.7,126.65,100.0]
[1719223540226,6.9049,126.69,126.65,100.0]
[1719223541233,6.9049,126.69,126.63,200.0]
[1719223542009,6.9049,126.69,126.65,100.0]
[1719223542423,6.9049,126.69,126.67,100.0]
[1719223542626,2.207e-05,126.7,126.69,100.0]
[1719223542827,2.207e-05,126.7,126.67,100.0]
[1719223543337,2.207e-05,126.7,126.69,100.0]
[1719223543915,2.207e-05,126.7,126.66,100.0]
[1719223544951,2.207e-05,126.7,126.63,100.0]
[1719223544952,2.207e-05,126.7,126.62,200.0]
[1719223545314,2.207e-05,126.7,126.62,100.0]
[1719223545315,0.17002207,126.7,126.62,100.0]
[1719223545514,0.17,126.69,126.6,100.0]
[1719223545715,0.17,126.69,126.59,100.0]
[1719223545716,0.17,126.69,126.63,100.0]
[1719223546137,2.207e-05,126.7,126.64,100.0]
[1719223546337,2.207e-05,126.7,126.6,100.0]
[1719223546516,0.17,126.69,126.6,100.0]
[1719223546716,7.0384,126.68,126.6,100.0]
[1719223546917,8.2345,126.67,126.6,100.0]
[1719223547237,7.8951,126.66,126.58,100.0]
[1719223547418,17.0484,126.65,126.56,0.8583786]
[1719223547618,16.8784,126.65,126.59,100.0]
[1719223547816,16.8784,126.65,126.61,100.0]
[1719223548021,16.8784,126.65,126.63,100.0]
[1719223548326,16.8784,126.65,126.56,0.8583786]
[1719223548327,7.0384,126.68,126.61,100.0]
[1719223548531,7.0384,126.68,126.63,100.0]
[1719223549033,7.0384,126.68,126.61,100.0]
[1719223549641,7.0384,126.68,126.63,100.0]
[1719223551053,7.0384,126.68,126.61,100.0]
[1719223551262,0.34,126.67,126.57,200.0]
[1719223551951,7.8955,126.66,126.57,100.0]
[1719223552135,8.0658,126.65,126.57,100.0]
[1719223552338,0.17,126.65,126.57,100.0]
[1719223552738,8.0655,126.66,126.57,100.0]
[1719223552966,0.17,126.65,126.57,100.0]
[1719223553147,8.0656,126.66,126.57,100.0]
[1719223553455,0.17,126.65,126.57,100.0]
[1719223553657,8.0658,126.65,126.57,100.0]
[1719223553857,0.17,126.64,126.57,100.0]
[1719223554065,0.17,126.65,126.57,100.0]
[1719223554447,7.8969,126.64,126.57,100.0]
[1719223554638,0.17,126.66,126.57,100.0]
[1719223554837,10.34,126.67,126.57,100.0]
[1719223555240,8.2348,126.67,126.57,100.0]
[1719223555463,7.8967,126.64,126.56,0.8583786]
[1719223555647,0.34,126.67,126.56,0.8583786]
[1719223555648,0.17,126.63,126.56,0.8583786]
[1719223555848,8.066,126.65,126.56,0.8583786]
[1719223556051,0.17,126.64,126.57,100.0]
[1719223556354,16.0341,126.62,126.56,0.8583786]
[1719223556841,6.4745,126.63,126.59,100.0]
[1719223557158,6.4745,126.63,126.57,100.0]
[1719223557752,6.4745,126.63,126.59,100.0]
[1719223559067,6.4745,126.63,126.61,100.0]
[1719223559269,6.4745,126.63,126.59,100.0]
[1719223560777,6.4745,126.63,126.58,100.0]
[1719223561274,6.4745,126.63,126.57,100.0]
[1719223561562,6.7815,126.66,126.61,100.0]
[1719223562154,6.7815,126.66,126.63,100.0]
[1719223562542,6.7815,126.66,126.65,100.0]
[1719223563069,6.7815,126.66,126.61,100.0]
[1719223563778,6.7815,126.66,126.59,100.0]
[1719223563974,0.34,126.65,126.57,100.0]
[1719223564268,6.7815,126.66,126.61,100.0]
[1719223564500,6.7815,126.66,126.59,100.0]
[1719223564771,0.17,126.65,126.59,100.0]
[1719223565447,8.85728183,126.65,126.56,100.8583786]
[1719223565646,0.17,126.64,126.56,100.8583786]
[1719223566651,8.0667,126.64,126.56,0.8583786]
[1719223566980,0.96118183,126.63,126.56,0.8583786]
[1719223567158,0.17,126.62,126.56,0.8583786]
[1719223567359,17.7216,126.6,126.56,0.8583786]
[1719223567866,0.34,126.59,126.56,0.8583786]
[1719223568862,1.13118183,126.59,126.51,200.0]
[1719223569061,1.13118183,126.59,126.51,100.0]
[1719223569369,6.5443,126.58,126.49,100.0]
[1719223569586,6.5443,126.58,126.47,100.0]
[1719223569587,1.13118183,126.57,126.47,100.0]
[1719223570019,9.03238183,126.57,126.47,100.0]
[1719223570155,8.69268183,126.56,126.47,100.0]
[1719223570350,23.7571,126.54,126.43,0.8583786]
[1719223570573,0.34,126.53,126.44,100.0]
[1719223570770,0.34,126.53,126.46,100.0]
[1719223570971,23.7571,126.54,126.48,100.0]
[1719223571151,0.17,126.53,126.46,100.0]
[1719223571358,23.7571,126.54,126.49,100.0]
[1719223571575,23.7571,126.54,126.47,100.0]
[1719223572274,23.7571,126.54,126.49,100.0]
[1719223572466,23.7571,126.54,126.47,100.0]
[1719223572661,23.7571,126.54,126.49,100.0]
[1719223573277,7.0721,126.54,126.5,100.0]
[1719223573578,23.7889,126.58,126.54,100.0]
[1719223573957,23.7889,126.58,126.51,107.9039]
[1719223573958,6.592,126.63,126.58,200.0]
[1719223574158,6.592,126.63,126.61,100.0]
[1719223574564,6.6518,126.68,126.63,100.0]
[1719223574784,6.6518,126.68,126.65,100.0]
[1719223574960,2.207e-05,126.7,126.67,100.0]
[1719223575383,2.207e-05,126.7,126.65,100.0]
[1719223575581,2.207e-05,126.7,126.67,100.0]
[1719223575759,2.207e-05,126.7,126.64,100.0]
[1719223575760,2.207e-05,126.7,126.65,100.0]
[1719223575966,2.207e-05,126.7,126.63,100.0]
[1719223576275,2.207e-05,126.7,126.62,100.0]
[1719223576276,2.207e-05,126.7,126.65,100.0]
[1719223576998,2.207e-05,126.7,126.62,100.0]
[1719223576999,2.207e-05,126.7,126.63,100.0]
[1719223577663,2.207e-05,126.7,126.65,100.0]
[1719223577863,2.207e-05,126.7,126.69,100.0]
[1719223578170,2.207e-05,126.7,126.69,108.0632]
[1719223578368,2.207e-05,126.7,126.69,108.2332]
[1719223578886,2.207e-05,126.7,126.69,130.05911602]
[1719223580593,2.207e-05,126.7,126.69,149.79231602]
[1719223580781,6.8109,126.79,126.77,100.0]
[1719223581184,16.8101,126.82,126.79,100.0]
[1719223581381,16.8101,126.82,126.77,100.0]
[1719223582089,7.0606,126.84,126.79,100.0]
[1719223582391,7.0606,126.84,126.79,200.0]
[1719223582568,7.0606,126.84,126.81,100.0]
[1719223582886,7.0606,126.84,126.79,200.0]
[1719223583087,7.0606,126.84,126.81,100.0]
[1719223583506,7.0606,126.84,126.79,200.0]
[1719223583685,7.0606,126.84,126.81,100.0]
[1719223584205,0.8583786,126.88,126.85,100.0]
[1719223584383,0.8583786,126.88,126.84,100.0]
[1719223584698,0.8583786,126.88,126.82,100.0]
[1719223585195,0.8583786,126.88,126.84,100.0]
[1719223585397,0.8583786,126.88,126.8,100.0]
[1719223585895,9.53106043,126.88,126.79,100.0]
[1719223586070,9.53106043,126.88,126.78,100.0]
[1719223586071,1.64956043,126.88,126.78,100.0]
[1719223586277,1.64956043,126.88,126.8,100.0]
[1719223586494,9.53096043,126.88,126.8,100.0]
[1719223586693,0.8583786,126.88,126.8,100.0]
[1719223587191,0.17,126.87,126.8,100.0]